fUSD/lending_fUSD_20260601
["ID","MTS","AMOUNT","RATE_DAILY","PERIOD"]
[423710774,1780325446000,-862.28603014,0.00019829,2]
[423710773,1780325446000,-831.51979762,0.00019774,2]
[423710759,1780325446000,-1089.51516411,0.000196,2]
[423710779,1780325446000,-191.30903374,0.00019968,2]
[423710776,1780325446000,-196.73302569,0.000199,2]
[423710780,1780325446000,-224.2215208,0.0001999,2]
[423710783,1780325446000,-260.00122862,0.0002,2]
[423710777,1780325446000,-927.27566594,0.00019939,2]
[423710782,1780325446000,-5287.0021951,0.0002,2]
[423710778,1780325446000,-300.0,0.00019967,2]
[423710781,1780325446000,-961.58486558,0.00019994,2]
[423710775,1780325446000,-894.19061325,0.00019884,2]
[423710785,1780325446000,-200.0,0.0002,2]
[423710795,1780325446000,-1755.0,0.0002,2]
[423710784,1780325446000,-1313.64007294,0.0002,2]
[423710862,1780325447000,-338.0,0.00021,2]
[423710852,1780325447000,-736.0,0.00021,2]
[423710864,1780325447000,-3221.0,0.00021,2]
[423710866,1780325447000,-551.0,0.00021,2]
[423710870,1780325447000,-1197.0,0.00021,2]
[423710858,1780325447000,-1755.0,0.00021,2]
[423710872,1780325447000,-155.98038327,0.00021,2]
[423710871,1780325447000,-706.0,0.00021,2]
[423710868,1780325447000,-1849.0,0.00021,2]
[423710869,1780325447000,-705.0,0.00021,2]
[423710867,1780325447000,-391.0,0.00021,2]
[423710860,1780325447000,-446.0,0.00021,2]
[423710873,1780325447000,-155.98038327,0.00021,2]
[423710875,1780325447000,-608.38783013,0.00021,2]
[423710881,1780325447000,-2319.72410669,0.00021143,2]
[423710883,1780325447000,-161.0,0.00021205,2]
[423710874,1780325447000,-2000.0,0.00021,2]
[423710884,1780325447000,-76093.5323534,0.00021274,2]
[423710878,1780325447000,-267.80837883,0.00021142,2]
[423710880,1780325447000,-10652.17309792,0.00021143,2]
[423710877,1780325447000,-254.0,0.00021095,2]
[423710876,1780325447000,-327.593447,0.00021,2]
[423710879,1780325447000,-1592.87721992,0.00021143,2]
[423710886,1780325447000,-759.1287265,0.00021487,2]
[423710885,1780325447000,-353.24979172,0.00021429,2]
[423710882,1780325447000,-164.0,0.00021205,2]
[423710849,1780325447000,-308.98631508,0.000208,2]
[423710819,1780325447000,-2157.14243826,0.00020047,2]
[423710848,1780325447000,-934.84609719,0.00020793,2]
[423710888,1780325447000,-996.0497299,0.00021487,2]
[423710821,1780325447000,-997.16350561,0.00020049,2]
[423710816,1780325447000,-410.21529461,0.00020047,2]
[423710817,1780325447000,-9905.59807649,0.00020047,2]
[423710823,1780325447000,-308.98631508,0.000202,2]
[423710832,1780325447000,-308.98631508,0.000204,2]
[423710834,1780325447000,-500.0,0.00020411,2]
[423710838,1780325447000,-1536.04360648,0.00020595,2]
[423710839,1780325447000,-10272.10520532,0.00020595,2]
[423710840,1780325447000,-2236.95670847,0.00020595,2]
[423710825,1780325447000,-1379.0,0.00020273,2]
[423710841,1780325447000,-308.98631508,0.000206,2]
[423710836,1780325447000,-1686.76875324,0.00020495,2]
[423710829,1780325447000,-1346.3,0.00020381,2]
[423710842,1780325447000,-2000.0,0.000206,2]
[423710827,1780325447000,-254.0,0.00020273,2]
[423710844,1780325447000,-2688.60698181,0.000207,2]
[423710854,1780325447000,-151.0,0.00021,2]
[423710855,1780325447000,-1362.0,0.00021,2]
[423710843,1780325447000,-2731.75344597,0.00020693,2]
[423710845,1780325447000,-891.02,0.000207,2]
[423710851,1780325447000,-3416.64330529,0.00021,7]
[423710846,1780325447000,-30000.0,0.00020786,2]
[423710853,1780325447000,-555.0,0.00021,2]
[423710847,1780325447000,-183.64112066,0.00020793,2]
[423710850,1780325447000,-1776.0,0.00020869,5]
[423710887,1780325447000,-235.4839467,0.00021487,2]
[423710889,1780325447000,-3694.6010298,0.00021491,2]
[423710892,1780325447000,-151.0,0.00021492,2]
[423710926,1780325447000,-6002.46,0.00021756,2]
[423710925,1780325447000,-190.05710298,0.00021755,2]
[423710920,1780325447000,-151.0,0.000215,2]
[423710927,1780325447000,-507.40807909,0.00021774,7]
[423710924,1780325447000,-2405.55389863,0.00021691,2]
[423710921,1780325447000,-259.73969467,0.0002169,2]
[423710929,1780325447000,-254.0,0.00021917,2]
[423710922,1780325447000,-1651.81367706,0.00021691,2]
[423710923,1780325447000,-10606.76787305,0.00021691,2]
[423710931,1780325447000,-159.802168,0.00021918,2]
[423710941,1780325447000,-815.21277686,0.00022,7]
[423710933,1780325447000,-175.94193982,0.00021918,2]
[423710928,1780325447000,-196.73302567,0.0002191,8]
[423710937,1780325447000,-3706.59542726,0.00022,10]
[423710939,1780325447000,-15963.62593895,0.00022,4]
[423710936,1780325447000,-157.468849,0.00021997,2]
[423710934,1780325447000,-175.71539301,0.00021996,2]
[423710932,1780325447000,-1006.96,0.00021918,2]
[423710935,1780325447000,-175.71539301,0.00021996,2]
[423710945,1780325447000,-555.0,0.00022,2]
[423710954,1780325447000,-338.0,0.00022,2]
[423710952,1780325447000,-446.0,0.00022,2]
[423710950,1780325447000,-1755.0,0.00022,2]
[423710947,1780325447000,-151.0,0.00022,2]
[423710948,1780325447000,-1362.0,0.00022,2]
[423710893,1780325447000,-151.0,0.00021492,2]
[423710930,1780325447000,-5000.0,0.00021918,2]
[423710919,1780325447000,-151.0,0.000215,2]
[423710943,1780325447000,-736.0,0.00022,2]
[423710913,1780325447000,-1488.151599,0.00021492,2]
[423710914,1780325447000,-151.0,0.00021492,2]
[423710890,1780325447000,-109352.8157123,0.00021491,2]
[423710891,1780325447000,-301166.746889,0.00021491,2]
[423710895,1780325447000,-151.0,0.00021492,2]
[423710894,1780325447000,-151.0,0.00021492,2]
[423710896,1780325447000,-151.0,0.00021492,2]
[423710898,1780325447000,-650.148347,0.00021492,2]
[423710900,1780325447000,-650.148347,0.00021492,2]
[423710897,1780325447000,-151.0,0.00021492,2]
[423710899,1780325447000,-650.148347,0.00021492,2]
[423710903,1780325447000,-151.0,0.00021492,2]
[423710902,1780325447000,-151.0,0.00021492,2]
[423710901,1780325447000,-650.148347,0.00021492,2]
[423710907,1780325447000,-746.619018,0.00021492,2]
[423710917,1780325447000,-151.0,0.000215,2]
[423710906,1780325447000,-746.619018,0.00021492,2]
[423710918,1780325447000,-151.0,0.000215,2]
[423710910,1780325447000,-1488.151599,0.00021492,2]
[423710912,1780325447000,-1488.151599,0.00021492,2]
[423710915,1780325447000,-18291.00150325,0.000215,2]
[423710911,1780325447000,-1488.151599,0.00021492,2]
[423710908,1780325447000,-746.619018,0.00021492,2]
[423710909,1780325447000,-746.619018,0.00021492,2]
[423710904,1780325447000,-151.0,0.00021492,2]
[423710905,1780325447000,-151.0,0.00021492,2]
[423710916,1780325447000,-151.0,0.000215,2]
[423711006,1780325448000,-151.0,0.00023,2]
[423711005,1780325448000,-555.0,0.00023,2]
[423711007,1780325448000,-1362.0,0.00023,2]
[423711004,1780325448000,-736.0,0.00023,2]
[423711002,1780325448000,-477.52,0.00023,14]
[423710997,1780325448000,-350.0,0.00022669,4]
[423711001,1780325448000,-200.0,0.00022922,2]
[423711000,1780325448000,-2586.85809042,0.00022787,2]
[423710998,1780325448000,-254.0,0.00022739,2]
[423710999,1780325448000,-1776.30922209,0.00022787,2]
[423711008,1780325448000,-1755.0,0.00023,2]
[423711003,1780325448000,-355.08884253,0.00023,2]
[423711009,1780325448000,-446.0,0.00023,2]
[423711032,1780325448000,-150.0,0.00023229,2]
[423711012,1780325448000,-551.0,0.00023,2]
[423711017,1780325448000,-1197.0,0.00023,2]
[423711015,1780325448000,-1849.0,0.00023,2]
[423711013,1780325448000,-391.0,0.00023,2]
[423711016,1780325448000,-705.0,0.00023,2]
[423711011,1780325448000,-3221.0,0.00023,2]
[423711018,1780325448000,-706.0,0.00023,2]
[423711019,1780325448000,-2000.0,0.00023,2]
[423711020,1780325448000,-209.21103511,0.00023,3]
[423711031,1780325448000,-525.0,0.00023229,2]
[423711030,1780325448000,-1227.873,0.00023229,2]
[423710994,1780325448000,-10275.72267183,0.000225,2]
[423711010,1780325448000,-338.0,0.00023,2]
[423710993,1780325448000,-1814.02,0.00022466,2]
[423710959,1780325448000,-391.0,0.00022,2]
[423710991,1780325448000,-1663.93,0.00022466,2]
[423711034,1780325448000,-6068.0,0.00023229,2]
[423710957,1780325448000,-551.0,0.00022,2]
[423710955,1780325448000,-3221.0,0.00022,2]
[423710961,1780325448000,-450.0,0.00022,2]
[423710963,1780325448000,-1849.0,0.00022,2]
[423710965,1780325448000,-705.0,0.00022,2]
[423710967,1780325448000,-1197.0,0.00022,2]
[423710970,1780325448000,-706.0,0.00022,2]
[423710980,1780325448000,-528.18666344,0.000221,7]
[423710982,1780325448000,-200.0,0.00022136,2]
[423710981,1780325448000,-2682.10088016,0.00022133,2]
[423710978,1780325448000,-552.911354,0.00022,2]
[423710996,1780325448000,-238.94835329,0.00022668,2]
[423710976,1780325448000,-552.911354,0.00022,2]
[423710979,1780325448000,-552.911354,0.00022,2]
[423710984,1780325448000,-3408.0,0.000222,2]
[423710972,1780325448000,-867.64,0.00022,2]
[423710983,1780325448000,-308.24,0.000222,2]
[423710986,1780325448000,-571.27323327,0.00022238,2]
[423710985,1780325448000,-599.60298507,0.00022238,2]
[423710987,1780325448000,-1712.93078311,0.00022239,2]
[423710989,1780325448000,-1346.3,0.00022353,2]
[423710988,1780325448000,-2494.55939288,0.00022239,2]
[423710990,1780325448000,-891.02,0.000224,7]
[423710995,1780325448000,-1194.74176648,0.00022668,2]
[423710992,1780325448000,-863.08,0.00022466,2]
[423710974,1780325448000,-552.911354,0.00022,2]
[423711021,1780325448000,-290.3196055,0.000232,2]
[423711041,1780325448000,-1910.18787185,0.00023883,2]
[423711023,1780325448000,-165.205,0.00023229,2]
[423711059,1780325448000,-705.0,0.00024,2]
[423711063,1780325448000,-3761.85599519,0.0002421,2]
[423711070,1780325448000,-763.72277884,0.00024578,2]
[423711062,1780325448000,-891.02,0.000242,7]
[423711066,1780325448000,-1346.3,0.00024324,2]
[423711067,1780325448000,-1980.8648231,0.00024431,2]
[423711068,1780325448000,-2884.75459676,0.00024431,2]
[423711064,1780325448000,-934.84609719,0.00024295,2]
[423711065,1780325448000,-151.0,0.00024321,7]
[423711069,1780325448000,-200.0,0.00024495,2]
[423711072,1780325448000,-1000.0,0.00024658,2]
[423711074,1780325448000,-500.0,0.00024658,2]
[423711061,1780325448000,-706.0,0.00024,2]
[423711073,1780325448000,-500.0,0.00024658,2]
[423711076,1780325448000,-192.97649123,0.00024738,2]
[423711078,1780325448000,-164.030051,0.00024782,7]
[423711079,1780325448000,-1799.51214209,0.0002485,2]
[423711077,1780325448000,-192.97649123,0.00024738,2]
[423711080,1780325448000,-291.72242824,0.0002485,2]
[423711082,1780325448000,-867.64,0.00024886,7]
[423711081,1780325448000,-3164.60184965,0.0002485,2]
[423711087,1780325448000,-315528.33295117,0.00025,2]
[423711085,1780325448000,-2991.49051684,0.00024979,2]
[423711084,1780325448000,-2054.15682156,0.00024979,2]
[423711086,1780325448000,-313.60822115,0.00025,2]
[423711033,1780325448000,-932.0,0.00023229,2]
[423711075,1780325448000,-416.00554112,0.00024658,2]
[423711060,1780325448000,-1197.0,0.00024,2]
[423711071,1780325448000,-434.91,0.00024658,2]
[423711053,1780325448000,-338.0,0.00024,2]
[423711025,1780325448000,-929.0,0.00023229,2]
[423711051,1780325448000,-1755.0,0.00024,2]
[423711027,1780325448000,-3551.0,0.00023229,2]
[423711026,1780325448000,-1357.0,0.00023229,2]
[423711028,1780325448000,-1273.0,0.00023229,2]
[423711035,1780325448000,-1842.0326633,0.00023335,2]
[423711036,1780325448000,-2682.57183977,0.00023335,2]
[423711038,1780325448000,-6002.46,0.00023512,2]
[423711037,1780325448000,-1173.53545887,0.000235,2]
[423711046,1780325448000,-1256.97154961,0.00024,2]
[423711045,1780325448000,-3600.0,0.00024,2]
[423711043,1780325448000,-798.07,0.000239,14]
[423711083,1780325448000,-391.02372184,0.00024977,2]
[423711039,1780325448000,-200.0,0.00023709,2]
[423711044,1780325448000,-1039.53405848,0.00024,2]
[423711055,1780325448000,-551.0,0.00024,2]
[423711042,1780325448000,-2781.82699784,0.00023883,2]
[423711058,1780325448000,-1849.0,0.00024,2]
[423711057,1780325448000,-500.0,0.00024,2]
[423711048,1780325448000,-555.0,0.00024,2]
[423711050,1780325448000,-1362.0,0.00024,2]
[423711054,1780325448000,-3221.0,0.00024,2]
[423711052,1780325448000,-446.0,0.00024,2]
[423711049,1780325448000,-151.0,0.00024,2]
[423711040,1780325448000,-2000.0,0.000238,2]
[423711047,1780325448000,-736.0,0.00024,2]
[423711056,1780325448000,-391.0,0.00024,2]
[423711129,1780325449000,-1273.0,0.00026229,2]
[423711121,1780325449000,-162.77656797,0.00026027,2]
[423711125,1780325449000,-200.0,0.00026068,2]
[423711123,1780325449000,-190.66868038,0.00026031,2]
[423711127,1780325449000,-3551.0,0.00026229,2]
[423711120,1780325449000,-406.94141992,0.00026027,2]
[423711122,1780325449000,-6006.8,0.00026027,2]
[423711118,1780325449000,-550.0,0.00026,2]
[423711130,1780325449000,-1226.0,0.00026229,2]
[423711126,1780325449000,-929.0,0.00026229,2]
[423711124,1780325449000,-190.66868038,0.00026031,2]
[423711128,1780325449000,-1357.0,0.00026229,2]
[423711144,1780325449000,-162.0,0.00027,7]
[423711132,1780325449000,-150.0,0.00026229,2]
[423711133,1780325449000,-932.0,0.00026229,2]
[423711134,1780325449000,-6068.0,0.00026229,2]
[423711135,1780325449000,-1346.3,0.00026296,2]
[423711140,1780325449000,-5531.0,0.000267,5]
[423711138,1780325449000,-171.92530974,0.00026397,2]
[423711139,1780325449000,-176.62169336,0.00026397,2]
[423711137,1780325449000,-324.34607554,0.00026397,2]
[423711141,1780325449000,-200.0,0.00026854,2]
[423711136,1780325449000,-150.0,0.00026296,2]
[423711142,1780325449000,-2000.0,0.00027,2]
[423711119,1780325449000,-500.0,0.00026,2]
[423711131,1780325449000,-525.0,0.00026229,2]
[423711114,1780325449000,-350.0,0.00025769,7]
[423711091,1780325449000,-169.0,0.00025,2]
[423711111,1780325449000,-176.62169336,0.00025397,2]
[423711143,1780325449000,-167.0,0.00027,7]
[423711088,1780325449000,-793.7,0.00025,7]
[423711089,1780325449000,-747.1605181,0.00025,2]
[423711090,1780325449000,-570.0,0.00025,2]
[423711093,1780325449000,-1764.1352666,0.00025,2]
[423711092,1780325449000,-1362.0,0.00025,2]
[423711094,1780325449000,-462.63813091,0.00025,2]
[423711095,1780325449000,-353.52267832,0.00025,2]
[423711105,1780325449000,-2682.10088016,0.00025192,2]
[423711099,1780325449000,-1852.30352785,0.00025,2]
[423711097,1780325449000,-569.08824232,0.00025,2]
[423711103,1780325449000,-215.65015035,0.00025,7]
[423711100,1780325449000,-714.72412372,0.00025,2]
[423711104,1780325449000,-209.21103511,0.00025,7]
[423711101,1780325449000,-1211.78091631,0.00025,2]
[423711096,1780325449000,-3221.93836112,0.00025,2]
[423711098,1780325449000,-410.45074324,0.00025,2]
[423711102,1780325449000,-713.53095286,0.00025,2]
[423711107,1780325449000,-6002.46,0.00025269,7]
[423711106,1780325449000,-849.0,0.00025239,10]
[423711110,1780325449000,-171.92530974,0.00025397,2]
[423711113,1780325449000,-161.0,0.00025644,2]
[423711116,1780325449000,-2263.0,0.000258,3]
[423711115,1780325449000,-891.02,0.000258,7]
[423711109,1780325449000,-174.17500991,0.00025298,2]
[423711112,1780325449000,-164.0,0.00025644,2]
[423711108,1780325449000,-200.0,0.00025282,2]
[423711117,1780325449000,-275.0,0.00025945,2]
[423711146,1780325449000,-2588.176592,0.0002701,2]
[423711161,1780325449000,-1179.29,0.00027397,2]
[423711150,1780325449000,-710.0,0.00027137,2]
[423711182,1780325449000,-273.268058,0.00027397,2]
[423711180,1780325449000,-273.268058,0.00027397,2]
[423711178,1780325449000,-151.0,0.00027397,2]
[423711189,1780325449000,-179.503546,0.00027397,2]
[423711188,1780325449000,-15632.92,0.00027397,10]
[423711181,1780325449000,-273.268058,0.00027397,2]
[423711187,1780325449000,-273.268058,0.00027397,2]
[423711183,1780325449000,-273.268058,0.00027397,2]
[423711151,1780325449000,-280.0,0.00027206,2]
[423711184,1780325449000,-273.268058,0.00027397,2]
[423711191,1780325449000,-179.503546,0.00027397,2]
[423711193,1780325449000,-179.503546,0.00027397,2]
[423711185,1780325449000,-273.268058,0.00027397,2]
[423711201,1780325449000,-675.86,0.000274,7]
[423711192,1780325449000,-179.503546,0.00027397,2]
[423711190,1780325449000,-179.503546,0.00027397,2]
[423711194,1780325449000,-179.503546,0.00027397,2]
[423711199,1780325449000,-229.23374632,0.00027397,7]
[423711198,1780325449000,-1000.0,0.00027397,30]
[423711196,1780325449000,-1000.0,0.00027397,30]
[423711200,1780325449000,-235.49559114,0.00027397,7]
[423711195,1780325449000,-1000.0,0.00027397,30]
[423711197,1780325449000,-1000.0,0.00027397,30]
[423711203,1780325449000,-800.31,0.000274,7]
[423711205,1780325449000,-5208.98,0.000274,2]
[423711204,1780325449000,-5225.52,0.000274,14]
[423711202,1780325449000,-150.19631424,0.000274,7]
[423711179,1780325449000,-151.0,0.00027397,2]
[423711186,1780325449000,-273.268058,0.00027397,2]
[423711173,1780325449000,-1409.269871,0.00027397,2]
[423711149,1780325449000,-199.91500896,0.00027136,2]
[423711147,1780325449000,-6002.46,0.00027025,7]
[423711177,1780325449000,-151.0,0.00027397,2]
[423711152,1780325449000,-150.0,0.00027206,2]
[423711145,1780325449000,-173.0,0.00027,7]
[423711153,1780325449000,-220.0,0.00027206,2]
[423711157,1780325449000,-500.0,0.00027397,2]
[423711154,1780325449000,-326.32,0.00027397,30]
[423711159,1780325449000,-209.3860962,0.00027397,2]
[423711155,1780325449000,-159.66,0.00027397,2]
[423711156,1780325449000,-500.0,0.00027397,2]
[423711158,1780325449000,-155.82469259,0.00027397,2]
[423711164,1780325449000,-300.0,0.00027397,2]
[423711148,1780325449000,-499.78752242,0.00027136,2]
[423711163,1780325449000,-249.284287,0.00027397,2]
[423711160,1780325449000,-1500.0,0.00027397,2]
[423711175,1780325449000,-151.0,0.00027397,2]
[423711168,1780325449000,-1409.269871,0.00027397,2]
[423711170,1780325449000,-1409.269871,0.00027397,2]
[423711171,1780325449000,-1409.269871,0.00027397,2]
[423711176,1780325449000,-151.0,0.00027397,2]
[423711174,1780325449000,-151.0,0.00027397,2]
[423711169,1780325449000,-1409.269871,0.00027397,2]
[423711167,1780325449000,-1409.269871,0.00027397,2]
[423711166,1780325449000,-1409.269871,0.00027397,2]
[423711165,1780325449000,-434.91,0.00027397,2]
[423711162,1780325449000,-151.0,0.00027397,2]
[423711172,1780325449000,-1409.269871,0.00027397,2]
[423711218,1780325450000,-934.84609719,0.00027797,2]
[423711225,1780325450000,-996.0497299,0.00027983,2]
[423711226,1780325450000,-3694.6010298,0.00027989,2]
[423711224,1780325450000,-235.4839467,0.00027983,2]
[423711221,1780325450000,-439.01199917,0.00027851,2]
[423711219,1780325450000,-800.31,0.000278,7]
[423711222,1780325450000,-157.468849,0.00027881,7]
[423711223,1780325450000,-759.1287265,0.00027983,2]
[423711214,1780325450000,-1226.77,0.00027684,14]
[423711228,1780325450000,-128342.79811206,0.00027989,2]
[423711209,1780325450000,-5208.98,0.000274,2]
[423711216,1780325450000,-76093.5323534,0.00027705,2]
[423711215,1780325450000,-891.02,0.000277,7]
[423711213,1780325450000,-710.0,0.00027671,2]
[423711211,1780325450000,-3439.0,0.000275,7]
[423711212,1780325450000,-200.0,0.00027641,2]
[423711208,1780325450000,-5208.98,0.000274,2]
[423711207,1780325450000,-5208.98,0.000274,2]
[423711206,1780325450000,-5208.98,0.000274,2]
[423711210,1780325450000,-1109.60011597,0.0002746,3]
[423711220,1780325450000,-5225.52,0.000278,14]
[423711227,1780325450000,-109352.8157123,0.00027989,2]
[423711217,1780325450000,-867.64,0.00027773,7]
[423711230,1780325450000,-842.65483553,0.00027989,2]
[423711229,1780325450000,-1540.37451112,0.00027989,2]
[423711251,1780325450000,-1409.269871,0.00027989,7]
[423711249,1780325450000,-1409.269871,0.00027989,7]
[423711250,1780325450000,-1409.269871,0.00027989,7]
[423711246,1780325450000,-151.0,0.00027989,7]
[423711248,1780325450000,-151.0,0.00027989,7]
[423711245,1780325450000,-151.0,0.00027989,7]
[423711247,1780325450000,-151.0,0.00027989,7]
[423711244,1780325450000,-239.865368,0.00027989,7]
[423711243,1780325450000,-151.0,0.00027989,7]
[423711239,1780325450000,-151.0,0.00027989,7]
[423711242,1780325450000,-151.0,0.00027989,7]
[423711241,1780325450000,-151.0,0.00027989,7]
[423711231,1780325450000,-470.29418979,0.00027989,2]
[423711235,1780325450000,-179.503546,0.00027397,2]
[423711233,1780325450000,-1248.08079839,0.00027397,10]
[423711236,1780325450000,-179.503546,0.00027397,2]
[423711232,1780325450000,-1306.37736143,0.00027989,2]
[423711237,1780325450000,-168664.24787907,0.00027989,2]
[423711238,1780325450000,-235.425028,0.00027989,7]
[423711240,1780325450000,-151.0,0.00027989,7]
[423711234,1780325450000,-11779.35920161,0.00027397,10]
[423711287,1780325451000,-151.0,0.00027989,7]
[423711277,1780325451000,-746.619018,0.00027989,7]
[423711276,1780325451000,-746.619018,0.00027989,7]
[423711280,1780325451000,-1488.151599,0.00027989,7]
[423711279,1780325451000,-1488.151599,0.00027989,7]
[423711278,1780325451000,-746.619018,0.00027989,7]
[423711283,1780325451000,-273.268058,0.00027989,7]
[423711285,1780325451000,-273.268058,0.00027989,7]
[423711286,1780325451000,-273.268058,0.00027989,7]
[423711290,1780325451000,-179.503546,0.00027989,7]
[423711292,1780325451000,-160.0,0.00028,2]
[423711297,1780325451000,-215.65015035,0.00028,7]
[423711291,1780325451000,-48915.65850526,0.00028,2]
[423711288,1780325451000,-179.503546,0.00027989,7]
[423711284,1780325451000,-273.268058,0.00027989,7]
[423711293,1780325451000,-600.0,0.00028,2]
[423711296,1780325451000,-215.65015035,0.00028,10]
[423711304,1780325451000,-2682.10088016,0.0002825,2]
[423711306,1780325451000,-166.00924035,0.00028277,2]
[423711301,1780325451000,-800.31,0.000282,7]
[423711295,1780325451000,-209.21103511,0.00028,10]
[423711274,1780325451000,-178.682475,0.00027989,2]
[423711294,1780325451000,-209.21103511,0.00028,7]
[423711273,1780325451000,-151.0,0.00027989,2]
[423711262,1780325451000,-151.0,0.00027989,7]
[423711282,1780325451000,-1488.151599,0.00027989,7]
[423711260,1780325451000,-650.148347,0.00027989,7]
[423711255,1780325451000,-552.911354,0.00027989,7]
[423711253,1780325451000,-552.911354,0.00027989,7]
[423711252,1780325451000,-1409.269871,0.00027989,7]
[423711256,1780325451000,-552.911354,0.00027989,7]
[423711254,1780325451000,-552.911354,0.00027989,7]
[423711259,1780325451000,-650.148347,0.00027989,7]
[423711258,1780325451000,-650.148347,0.00027989,7]
[423711257,1780325451000,-650.148347,0.00027989,7]
[423711261,1780325451000,-151.0,0.00027989,7]
[423711275,1780325451000,-746.619018,0.00027989,7]
[423711263,1780325451000,-262.785484,0.00027989,7]
[423711266,1780325451000,-151.0,0.00027989,7]
[423711305,1780325451000,-1346.3,0.00028267,2]
[423711265,1780325451000,-151.0,0.00027989,7]
[423711267,1780325451000,-151.0,0.00027989,2]
[423711268,1780325451000,-151.0,0.00027989,2]
[423711271,1780325451000,-151.0,0.00027989,2]
[423711269,1780325451000,-151.0,0.00027989,2]
[423711270,1780325451000,-151.0,0.00027989,2]
[423711281,1780325451000,-1488.151599,0.00027989,7]
[423711272,1780325451000,-151.0,0.00027989,7]
[423711264,1780325451000,-151.0,0.00027989,7]
[423711298,1780325451000,-9796.01,0.00028127,2]
[423711289,1780325451000,-179.503546,0.00027989,7]
[423711299,1780325451000,-8848.75,0.00028127,2]
[423711326,1780325451000,-223.88544584,0.00028339,2]
[423711332,1780325451000,-166.95349487,0.00028393,2]
[423711335,1780325451000,-170.56906681,0.00028393,2]
[423711334,1780325451000,-153.6631712,0.00028393,2]
[423711333,1780325451000,-178.13337419,0.00028393,2]
[423711341,1780325451000,-200.0,0.00028427,2]
[423711336,1780325451000,-154.69935777,0.00028393,2]
[423711342,1780325451000,-192.25568688,0.00028452,14]
[423711343,1780325451000,-350.0,0.00028467,11]
[423711338,1780325451000,-608.72,0.00028394,7]
[423711337,1780325451000,-161.6840112,0.00028393,2]
[423711339,1780325451000,-579.4,0.00028394,7]
[423711340,1780325451000,-150.0,0.00028425,30]
[423711345,1780325451000,-156.32339601,0.00028529,7]
[423711344,1780325451000,-335.50367395,0.000285,2]
[423711346,1780325451000,-800.31,0.000286,7]
[423711351,1780325451000,-1006.19,0.00028632,30]
[423711348,1780325451000,-3439.0,0.000286,7]
[423711347,1780325451000,-5225.52,0.000286,14]
[423711349,1780325451000,-1341.07,0.00028631,30]
[423711350,1780325451000,-1471.44,0.00028632,30]
[423711300,1780325451000,-297.63,0.00028127,2]
[423711354,1780325451000,-812.8367189,0.00028632,30]
[423711322,1780325451000,-180.70943651,0.00028323,2]
[423711320,1780325451000,-168.63125381,0.00028278,2]
[423711352,1780325451000,-206.64198804,0.00028632,30]
[423711325,1780325451000,-167.36363786,0.00028323,2]
[423711321,1780325451000,-187.79715077,0.00028297,2]
[423711302,1780325451000,-5225.52,0.000282,14]
[423711311,1780325451000,-155.52078495,0.00028278,2]
[423711307,1780325451000,-252.42526289,0.00028277,2]
[423711309,1780325451000,-198.95457223,0.00028278,2]
[423711310,1780325451000,-155.56990815,0.00028278,2]
[423711308,1780325451000,-295.84126637,0.00028277,2]
[423711312,1780325451000,-156.62977018,0.00028278,2]
[423711315,1780325451000,-277.97998943,0.00028278,2]
[423711316,1780325451000,-290.53758135,0.00028278,2]
[423711317,1780325451000,-178.55371353,0.00028278,2]